fUSD/lending_fUSD_20260112
["ID","MTS","AMOUNT","RATE_DAILY","PERIOD"]
[401418315,1768197043569,-930.37920405,0.000179,2]
[401418316,1768197043579,-1054.4366,0.000179,2]
[401418317,1768197043590,-25000.0,0.000179,3]
[401418318,1768197043601,-211.9281146,0.000179,2]
[401418319,1768197043610,-25000.0,0.000179,3]
[401418320,1768197043621,-450.17704868,0.000179,2]
[401418321,1768197043631,-718.34267946,0.000179,3]
[401418322,1768197043643,-1263.93132606,0.000179,2]
[401418323,1768197043654,-1263.93132596,0.000179,2]
[401418324,1768197043664,-1263.93132596,0.000179,2]
[401418325,1768197043673,-2987.79350316,0.000179,2]
[401418326,1768197043682,-1263.93132596,0.000179,2]
[401418327,1768197043692,-1263.93132596,0.000179,2]
[401418328,1768197043702,-1263.93132596,0.000179,2]
[401418329,1768197043712,-1263.93132596,0.000179,2]
[401418330,1768197043722,-1263.93132596,0.000179,2]
[401418331,1768197043731,-1263.93132596,0.000179,2]
[401418332,1768197043741,-1263.93132596,0.000179,2]
[401418333,1768197043751,-1263.93132596,0.000179,2]
[401418334,1768197043761,-1263.93132596,0.000179,2]
[401418335,1768197043772,-1263.93132596,0.000179,2]
[401418336,1768197043783,-5424.51026009,0.000179,2]
[401418337,1768197043794,-8549.32337266,0.000179,2]
[401418338,1768197043805,-1263.93132596,0.000179,2]
[401418339,1768197043816,-6459.0,0.000179,2]
[401418340,1768197043825,-268.4,0.00017905,2]
[401418341,1768197043835,-500.0,0.0001791,2]
[401418342,1768197043845,-500.0,0.0001791,2]
[401418343,1768197043854,-500.0,0.0001791,2]
[401418344,1768197043863,-500.0,0.0001791,2]
[401418345,1768197043872,-500.0,0.0001791,2]
[401418346,1768197043883,-500.0,0.0001791,2]
[401418347,1768197043894,-385.31676,0.0001791,2]
[401418348,1768197043904,-150.0,0.00017928,2]
[401418349,1768197043914,-715.24456864,0.0001794,2]
[401418350,1768197043924,-946.0,0.0001795,2]
[401418351,1768197043937,-498.39272947,0.00017973,2]
[401418352,1768197043946,-500.0,0.00017973,2]
[401418353,1768197043957,-515.69548792,0.00017973,2]
[401418354,1768197043968,-501.12911319,0.00017973,2]
[401418355,1768197043979,-502.23302881,0.00017973,2]
[401418356,1768197043990,-644.05438872,0.00017973,2]
[401418357,1768197044002,-381.34584895,0.00017973,2]
[401418358,1768197044012,-500.0,0.00017973,2]
[401418359,1768197044022,-501.47661499,0.00017973,2]
[401418360,1768197044032,-503.67264874,0.00017973,2]
[401418361,1768197044043,-500.55153068,0.00017973,2]
[401418362,1768197044053,-501.78685961,0.00017973,2]
[401418363,1768197044064,-503.85916191,0.00017973,2]
[401418364,1768197044075,-500.0,0.00017973,2]
[401418365,1768197044088,-500.0,0.00017973,2]
[401418366,1768197044098,-500.0,0.00017973,2]
[401418367,1768197044109,-501.10571804,0.00017973,2]
[401418368,1768197044121,-501.38258594,0.00017973,2]
[401418369,1768197044134,-502.86808452,0.00017973,2]
[401418370,1768197044144,-153.49935164,0.00017973,2]
[401418371,1768197044153,-1330.0,0.0001798,2]
[401418372,1768197044163,-1405.0,0.0001798,2]
[401418373,1768197044174,-614.0,0.0001798,2]
[401418374,1768197044185,-3469.0,0.0001798,2]
[401418375,1768197044195,-1267.0,0.0001798,2]
[401418376,1768197044206,-505.0,0.0001798,2]
[401418377,1768197044216,-914.0,0.0001798,2]
[401418379,1768197044225,-1201.0,0.0001798,2]
[401418381,1768197044234,-566.0,0.0001798,2]
[401418383,1768197044243,-150.0,0.0001798,2]
[401418385,1768197044252,-6556.0,0.0001798,2]
[401418387,1768197044261,-152.92662848,0.00017982,2]
[401418389,1768197044271,-500.0,0.00017982,2]
[401418391,1768197044280,-1047.04298225,0.0001799,2]
[401418393,1768197044290,-1047.04298225,0.0001799,2]
[401418395,1768197044299,-758.23,0.00017998,2]
[401418397,1768197044308,-1110.78417923,0.00017999,5]
[401418399,1768197044317,-456.07319796,0.00017999,2]
[401418401,1768197044326,-300.0,0.00017999,2]
[401418403,1768197044336,-300.0,0.00017999,2]
[401418405,1768197044345,-300.0,0.00017999,2]
[401418407,1768197044354,-300.0,0.00017999,2]
[401418409,1768197044363,-666.0,0.00017999,2]
[401418411,1768197044372,-300.0,0.00017999,2]
[401418413,1768197044382,-666.0,0.00017999,2]
[401418415,1768197044391,-758.23,0.00017999,2]
[401418417,1768197044400,-758.23,0.00017999,2]
[401418419,1768197044410,-758.23,0.00017999,2]
[401418421,1768197044419,-758.23,0.00017999,2]
[401418423,1768197044428,-758.23,0.00017999,2]
[401418425,1768197044438,-758.23,0.00017999,2]
[401418427,1768197044447,-758.23,0.00017999,2]
[401418429,1768197044457,-758.23,0.00017999,2]
[401418431,1768197044466,-758.23,0.00017999,2]
[401418433,1768197044476,-758.23,0.00017999,2]
[401418435,1768197044485,-758.25509882,0.00017999,2]
[401418437,1768197044494,-263.65847092,0.00018,2]
[401418439,1768197044503,-154.38953807,0.00018,2]
[401418441,1768197044513,-155.07098725,0.00018,2]
[401418443,1768197044522,-154.70586823,0.00018,2]
[401418445,1768197044531,-151.45444701,0.00018,2]
[401418447,1768197044540,-155.70825827,0.00018,2]
[401418449,1768197044549,-248.59699216,0.00018,2]
[401418450,1768197044558,-261.69004956,0.00018,2]
[401418452,1768197044567,-152.34445976,0.00018,2]
[401418455,1768197044577,-4194535.37216507,0.00018,2]
[401418538,1768197045455,-688.31714261,0.000179,2]
[401418567,1768197231880,403.42456689,0.00027397,120]
[401418568,1768197261862,1110.78417923,0.00013527,3]
[401418569,1768197637612,-339.6165,0.00013257,2]
[401418570,1768197685802,1825.4,0.00013007,2]
[401418571,1768198145098,-254.77053957,0.00013256,2]
[401418572,1768198192117,150.0,1.37e-06,30]
[401418578,1768198231585,-300.0,0.00013256,2]
[401418579,1768198231595,-134.42185821,0.00013256,2]
[401418580,1768198231606,-165.57814179,0.00013256,2]
[401418581,1768198231615,-1200.0,0.00013256,2]
[401418582,1768198231625,-259.0,0.00013256,2]
[401418583,1768198231634,-250.0,0.00013256,2]
[401418584,1768198231644,-299.70035839,0.00013257,2]
[401418585,1768198231653,-2900.405,0.00013257,2]
[401418586,1768198231662,-192.583,0.00013257,2]
[401418587,1768198231672,-500.0,0.00013327,2]
[401418588,1768198231682,-185.65737829,0.00013327,2]
[401418589,1768198231692,-7983.69063412,0.00013327,2]
[401418590,1768198231702,-150.0,0.00013327,2]
[401418591,1768198231711,-86823.86199484,0.00013328,2]
[401418592,1768198231725,-280.0,0.00013328,2]
[401418593,1768198231751,-564.72626631,0.00013328,2]
[401418594,1768198231762,-2108.01942602,0.00013328,2]
[401418595,1768198231774,-14458.01180516,0.00013328,2]
[401418596,1768198231785,-1907.47582606,0.00013328,2]
[401418597,1768198231796,-3145.62502986,0.00013328,2]
[401418598,1768198231807,-999.0,0.00013328,2]
[401418599,1768198231819,-9803.96001099,0.00013328,2]
[401418602,1768198237868,-1889.45118596,0.00013328,2]
[401418603,1768198237880,-4932.1520001,0.00013328,2]
[401418604,1768198237891,-2824.62425539,0.00013328,2]
[401418605,1768198237902,-18076.96787804,0.00013328,2]
[401418606,1768198237958,-60240.65626118,0.00013328,2]
[401418608,1768198237982,-506.31274187,0.00013328,2]
[401418610,1768198237993,-720.01455073,0.00013328,2]
[401418625,1768198239731,-790719.14076749,0.00013328,2]
[401418626,1768198239741,-177.92236706,0.00013328,2]
[401418627,1768198239751,-24172.7647,0.00013428,2]
[401418628,1768198239761,-1000.0,0.00013516,2]
[401418629,1768198239771,-12278.84297836,0.00013518,2]
[401418630,1768198239780,-242.29314721,0.0001352,2]
[401418631,1768198239790,-3413.21618781,0.00013527,2]
[401418632,1768198239800,-25979.38,0.00013528,2]
[401418633,1768198239809,-1080.31449988,0.00013627,2]
[401418634,1768198239819,-9999.99,0.00013627,2]
[401418635,1768198239828,-41767.37,0.00013627,2]
[401418636,1768198239837,-150.99,0.00013627,2]
[401418637,1768198239847,-1193.24,0.00013627,2]
[401418638,1768198239856,-9999.99,0.00013627,2]
[401418639,1768198239866,-299.99,0.00013627,2]
[401418640,1768198239874,-999.99,0.00013627,2]
[401418641,1768198239884,-500.0,0.00013698,2]
[401418642,1768198239893,-500.0,0.00013698,2]
[401418643,1768198239902,-262.73857183,0.00013698,2]
[401418644,1768198239912,-500.0,0.00013698,2]
[401418645,1768198239921,-500.0,0.00013698,2]
[401418646,1768198239931,-500.0,0.00013698,2]
[401418647,1768198239940,-500.0,0.00013698,2]
[401418648,1768198239949,-500.0,0.00013698,2]
[401418649,1768198239959,-500.0,0.00013698,2]
[401418650,1768198239968,-500.0,0.00013698,2]
[401418651,1768198239977,-317.23562895,0.00013698,2]
[401418652,1768198239987,-519.22178049,0.00013698,2]
[401418653,1768198239996,-500.0,0.00013698,2]
[401418654,1768198240005,-500.0,0.00013698,2]
[401418655,1768198240015,-429.66234368,0.00013698,2]
[401418656,1768198240025,-500.70750239,0.00013698,2]
[401418657,1768198240034,-500.0,0.00013698,2]
[401418658,1768198240043,-500.0,0.00013698,2]
[401418659,1768198240052,-500.0,0.00013698,2]
[401418660,1768198240062,-500.0,0.00013698,2]
[401418661,1768198240071,-715.19,0.00013698,2]
[401418662,1768198240080,-500.0,0.00013698,2]
[401418663,1768198240089,-500.0,0.00013698,2]
[401418664,1768198240098,-500.0,0.00013698,2]
[401418665,1768198240107,-500.0,0.00013698,2]
[401418666,1768198240116,-500.0,0.00013698,2]
[401418668,1768198240125,-500.0,0.00013698,2]
[401418670,1768198240134,-500.0,0.00013698,2]
[401418672,1768198240142,-500.0,0.00013698,2]
[401418674,1768198240151,-500.0,0.00013698,2]
[401418675,1768198240160,-1000.0,0.00013827,2]
[401418677,1768198240169,-7983.6906341,0.00013835,2]
[401418680,1768198240179,-500.0,0.00013926,2]
[401418682,1768198240194,-500.0,0.00013926,2]
[401418684,1768198240206,-510.98377513,0.00013926,2]
[401418686,1768198240215,-500.0,0.00013926,2]
[401418687,1768198240224,-284.41060558,0.00013926,2]
[401418689,1768198240234,-764.01827116,0.00013967,2]
[401418691,1768198240243,-715.19,0.00013972,2]
[401418694,1768198240252,-3413.21618772,0.00014013,2]
[401418696,1768198240267,-575.97,0.00014172,2]
[401418698,1768198240281,-7736.08,0.0001418,2]
[401418701,1768198240295,-748.12201918,0.00014205,2]
[401418703,1768198240308,-500.0,0.00014207,2]
[401418705,1768198240319,-500.0,0.00014243,2]
[401418709,1768198240331,-500.0,0.00014243,2]
[401418712,1768198240344,-500.0,0.00014243,2]
[401418714,1768198240356,-500.0,0.00014243,2]
[401418717,1768198240369,-500.0,0.00014243,2]
[401418719,1768198240382,-715.19,0.00014246,2]
[401418722,1768198240395,-1080.31449983,0.00014339,2]
[401418724,1768198240407,-7983.6906341,0.00014343,2]
[401418726,1768198240418,-255.0,0.00014433,2]
[401418729,1768198240429,-1047.04298225,0.00014489,2]
[401418731,1768198240441,-3413.21618772,0.00014499,2]
[401418733,1768198240454,-715.19,0.0001452,2]
[401418736,1768198240467,-420.0,0.00014534,2]
[401418738,1768198240483,-420.0,0.00014534,2]
[401418740,1768198240495,-600.0,0.00014582,2]
[401418743,1768198240508,-555.91190523,0.00014582,2]
[401418745,1768198240521,-195.0,0.00014582,2]
[401418747,1768198240533,-348.26479287,0.00014582,2]
[401418750,1768198240549,-250.0,0.00014582,2]
[401418752,1768198240561,-1680.0,0.00014582,2]
[401418755,1768198240574,-546.21461534,0.00014776,2]
[401418757,1768198240587,-715.19,0.00014794,2]
[401418759,1768198240599,-7983.6906341,0.00014851,2]
[401418762,1768198240612,-575.97,0.00014881,2]
[401418764,1768198240626,-3413.21618772,0.00014985,2]
[401418767,1768198240638,-1080.31449983,0.00015051,2]
[401418769,1768198240651,-715.19,0.00015068,2]
[401418771,1768198240662,-332.33,0.00015068,2]
[401418774,1768198240673,-158.20488255,0.00015214,2]
[401418776,1768198240683,-151.0,0.00015232,2]
[401418778,1768198240695,-151.0,0.00015232,2]
[401418780,1768198240709,-151.0,0.00015232,2]
[401418783,1768198240722,-151.0,0.0001531,2]
[401418785,1768198240732,-151.0,0.0001531,2]
[401418787,1768198240743,-715.19,0.00015342,2]
[401418789,1768198240754,-7983.6906341,0.00015359,2]
[401418792,1768198240767,-546.21461534,0.00015401,2]
[401418794,1768198240780,-310.81,0.00015414,2]
[401418796,1768198240791,-3413.21618772,0.00015471,2]
[401418798,1768198240803,-65595.25692836,0.00015551,2]
[401418800,1768198240814,-575.97,0.00015589,2]
[401418803,1768198240826,-715.24456864,0.00015616,2]
[401418805,1768198240837,-433.0,0.00015632,2]
[401418807,1768198240848,-500.0,0.00015726,2]
[401418810,1768198240865,-1080.31449983,0.00015764,2]
[401418812,1768198240877,-1262.48,0.00015841,2]
[401418815,1768198240888,-7983.6906341,0.00015868,2]
[401418817,1768198240900,-362.29265456,0.000159,2]
[401418819,1768198240912,-362.29265456,0.000159,2]
[401418821,1768198240923,-362.29265456,0.000159,2]
[401418823,1768198240936,-587.0,0.00015934,2]
[401418826,1768198240948,-587.0,0.00015934,2]
[401418827,1768198240961,-3413.21618772,0.00015956,2]
[401418828,1768198240974,-150.0,0.00016022,2]
[401418829,1768198240986,-150.0,0.00016022,2]
[401418830,1768198240997,-500.0,0.00016022,2]
[401418831,1768198241008,-500.0,0.00016022,2]
[401418832,1768198241021,-500.0,0.00016022,2]
[401418833,1768198241035,-500.0,0.00016022,2]
[401418834,1768198241048,-500.0,0.00016022,2]
[401418835,1768198241060,-230.15043616,0.00016022,2]
[401418836,1768198241072,-500.0,0.00016022,2]
[401418837,1768198241083,-500.0,0.00016022,2]
[401418838,1768198241098,-500.0,0.00016022,2]
[401418839,1768198241109,-500.0,0.00016022,2]
[401418840,1768198241122,-150.0,0.00016022,2]
[401418841,1768198241135,-150.0,0.00016022,2]
[401418842,1768198241146,-500.0,0.00016022,2]
[401418843,1768198241158,-500.0,0.00016022,2]
[401418844,1768198241170,-500.0,0.00016022,2]
[401418845,1768198241181,-500.0,0.00016022,2]
[401418846,1768198241193,-150.0,0.00016022,2]
[401418847,1768198241206,-500.0,0.00016022,2]
[401418848,1768198241218,-546.21461534,0.00016026,2]
[401418849,1768198241232,-2351.0,0.0001604,2]
[401418850,1768198241243,-1000.0,0.00016047,2]
[401418851,1768198241255,-153.92511904,0.00016077,2]
[401418852,1768198241268,-159.58217341,0.00016077,2]
[401418853,1768198241282,-571.60013609,0.00016077,2]
[401418854,1768198241295,-500.0,0.00016077,2]
[401418855,1768198241308,-500.0,0.00016077,2]
[401418856,1768198241321,-618.16233582,0.00016077,2]
[401418857,1768198241335,-500.0,0.00016077,2]
[401418858,1768198241349,-500.0,0.00016077,2]
[401418859,1768198241360,-500.0,0.00016077,2]
[401418860,1768198241371,-500.0,0.00016077,2]
[401418861,1768198241383,-500.0,0.00016077,2]
[401418862,1768198241395,-500.0,0.00016077,2]
[401418863,1768198241406,-500.0,0.00016077,2]
[401418864,1768198241418,-500.0,0.00016077,2]
[401418865,1768198241430,-500.0,0.00016077,2]
[401418866,1768198241442,-500.0,0.00016077,2]
[401418867,1768198241455,-500.0,0.00016132,2]
[401418868,1768198241468,-500.0,0.00016132,2]
[401418869,1768198241482,-507.79708825,0.00016132,2]
[401418870,1768198241493,-500.0,0.00016132,2]
[401418871,1768198241506,-500.0,0.00016132,2]
[401418872,1768198241520,-500.0,0.00016132,2]
[401418873,1768198241531,-500.0,0.00016132,2]
[401418874,1768198241543,-500.0,0.00016132,2]
[401418875,1768198241555,-500.0,0.00016132,2]
[401418876,1768198241568,-500.0,0.00016132,2]
[401418877,1768198241581,-500.0,0.00016132,2]
[401418878,1768198241594,-500.0,0.00016132,2]
[401418879,1768198241607,-500.0,0.00016186,2]
[401418880,1768198241619,-150.0,0.00016186,2]
[401418881,1768198241630,-500.0,0.00016186,2]
[401418882,1768198241642,-500.0,0.00016186,2]
[401418883,1768198241654,-500.0,0.00016186,2]
[401418884,1768198241667,-500.0,0.00016186,2]
[401418885,1768198241679,-500.0,0.00016186,2]
[401418886,1768198241691,-357.41876198,0.00016186,2]
[401418887,1768198241703,-500.0,0.00016186,2]
[401418888,1768198241715,-500.0,0.00016186,2]
[401418889,1768198241728,-610.0,0.00016186,2]
[401418890,1768198241741,-150.0,0.000162,2]
[401418891,1768198241752,-150.0,0.000162,2]
[401418892,1768198241764,-150.0,0.000162,2]
[401418893,1768198241777,-150.0,0.000162,2]
[401418894,1768198241791,-150.0,0.000162,2]
[401418895,1768198241802,-150.0,0.000162,2]
[401418896,1768198241814,-150.0,0.000162,2]
[401418897,1768198241827,-152.37123582,0.000162,2]
[401418898,1768198241839,-150.0,0.000162,2]
[401418899,1768198241852,-500.0,0.00016241,2]
[401418900,1768198241864,-500.0,0.00016241,2]
[401418901,1768198241876,-500.0,0.00016241,2]
[401418902,1768198241887,-432.01326872,0.00016241,2]
[401418903,1768198241900,-500.0,0.00016241,2]
[401418904,1768198241912,-500.0,0.00016241,2]
[401418905,1768198241924,-500.0,0.00016241,2]
[401418906,1768198241936,-500.0,0.00016241,2]
[401418907,1768198241947,-998.0,0.00016242,2]
[401418908,1768198241958,-151.0,0.00016242,2]
[401418909,1768198241969,-306.28594561,0.00016242,2]
[401418910,1768198241981,-533.88981491,0.00016242,2]
[401418911,1768198241992,-404.15701326,0.00016242,2]
[401418912,1768198242003,-150.0,0.00016272,2]
[401418913,1768198242014,-500.0,0.00016296,2]
[401418914,1768198242025,-500.0,0.00016296,2]
[401418915,1768198242036,-500.0,0.00016296,2]
[401418916,1768198242048,-500.0,0.00016296,2]
[401418917,1768198242059,-197.61147328,0.00016296,2]
[401418918,1768198242070,-575.97,0.00016298,2]
[401418919,1768198242082,-6465.0,0.00016319,2]
[401418920,1768198242093,-500.0,0.00016329,2]
[401418921,1768198242108,-150.0,0.00016338,2]
[401418922,1768198242127,-150.0,0.00016344,2]
[401418923,1768198242139,-150.0,0.0001635,2]
[401418924,1768198242151,-337.0,0.00016351,2]
[401418925,1768198242162,-500.0,0.00016351,2]
[401418926,1768198242174,-500.0,0.00016351,2]
[401418927,1768198242185,-500.0,0.00016351,2]
[401418928,1768198242198,-150.0,0.00016364,2]
[401418929,1768198242219,-150.0,0.00016364,2]
[401418930,1768198242238,-7983.6906341,0.00016376,2]
[401418931,1768198242249,-150.0,0.000164,2]
[401418932,1768198242260,-500.0,0.00016406,2]
[401418933,1768198242273,-500.0,0.00016406,2]
[401418934,1768198242285,-570.34837808,0.00016406,2]
[401418935,1768198242298,-150.0,0.00016416,2]
[401418936,1768198242309,-758.23,0.00016438,2]
[401418937,1768198242319,-758.23,0.00016438,2]
[401418938,1768198242331,-758.23,0.00016438,2]
[401418939,1768198242341,-758.23,0.00016438,2]
[401418940,1768198242352,-758.23,0.00016438,2]
[401418941,1768198242363,-332.33,0.00016438,2]
[401418942,1768198242374,-226.66,0.00016438,2]
[401418943,1768198242385,-151.0,0.00016438,2]
[401418944,1768198242395,-3413.21618772,0.00016442,2]
[401418945,1768198242406,-500.0,0.0001646,2]
[401418946,1768198242417,-563.05189943,0.0001646,2]
[401418947,1768198242428,-1080.31449983,0.00016476,2]
[401418948,1768198242439,-150.0,0.00016477,2]
[401418949,1768198242449,-150.0,0.00016488,2]
[401418950,1768198242461,-150.0,0.000165,2]
[401418951,1768198242475,-508.57149455,0.00016515,2]
[401418953,1768198242487,-150.0,0.00016527,2]
[401418955,1768198242497,-150.0,0.00016527,2]
[401418957,1768198242508,-150.0,0.0001656,2]
[401418959,1768198242519,-500.0,0.00016598,2]
[401418961,1768198242531,-150.0,0.000166,2]
[401418962,1768198242542,-150.0,0.00016615,2]
[401418963,1768198242552,-965.81,0.00016623,2]
[401418964,1768198242562,-150.0,0.00016632,2]
[401418965,1768198242573,-150.0,0.0001665,2]
[401418966,1768198242583,-546.21461534,0.00016651,2]
[401418967,1768198242594,-150.0,0.00016691,2]
[401418968,1768198242605,-150.0,0.00016691,2]
[401418969,1768198242616,-150.0,0.00016704,2]
[401418970,1768198242626,-150.0,0.00016754,2]
[401418971,1768198242637,-150.0,0.00016776,2]
[401418972,1768198242647,-151.0,0.0001679,2]
[401418973,1768198242658,-553.64373807,0.0001679,2]
[401418974,1768198242669,-211.92811462,0.00016793,2]
[401418975,1768198242680,-150.0,0.000168,2]
[401418976,1768198242691,-150.0,0.000168,2]
[401418977,1768198242702,-2987.79350318,0.0001682,2]
[401418978,1768198242713,-150.0,0.00016848,2]
[401418979,1768198242724,-150.0,0.00016855,2]
[401418980,1768198242735,-150.0,0.00016855,2]
[401418981,1768198242746,-28047.0,0.00016877,2]
[401418982,1768198242757,-7983.6906341,0.00016884,2]
[401418983,1768198242768,-758.23,0.00016892,2]
[401418984,1768198242778,-758.23,0.00016892,2]
[401418985,1768198242790,-758.23,0.00016892,2]
[401418986,1768198242800,-758.23,0.00016892,2]
[401418987,1768198242811,-758.23,0.00016892,2]
[401418988,1768198242822,-150.0,0.00016892,2]
[401418989,1768198242832,-150.0,0.00016892,2]
[401418990,1768198242843,-150698.32745844,0.00016893,2]
[401418991,1768198242854,-245142.12314308,0.00016893,2]
[401418992,1768198242865,-346213.84170463,0.00016893,2]
[401418993,1768198242876,-447993.414,0.00016893,2]
[401418994,1768198242887,-150.0,0.0001692,2]
[401418995,1768198242898,-736.0,0.00016925,2]
[401418996,1768198242909,-3413.21618772,0.00016928,2]
[401418997,1768198242920,-268.4,0.00016943,2]
[401418998,1768198242931,-150.0,0.0001695,2]
[401418999,1768198242942,-150.0,0.00016992,2]
[401419000,1768198242953,-150.0,0.00017,2]
[401419001,1768198242964,-575.97,0.00017006,2]
[401419002,1768198242974,-150.0,0.00017018,2]
[401419003,1768198242984,-150.0,0.00017018,2]
[401419004,1768198242996,-1000.0,0.00017022,2]
[401419005,1768198243006,-150.0,0.00017031,2]
[401419006,1768198243018,-2987.79350316,0.00017036,2]
[401419007,1768198243029,-268.4,0.00017039,2]
[401419008,1768198243039,-150.0,0.00017064,2]
[401419009,1768198243050,-500.0,0.00017073,2]
[401419010,1768198243061,-613.94531007,0.00017073,2]
[401419011,1768198243072,-500.0,0.00017073,2]
[401419012,1768198243082,-501.67211681,0.00017073,2]
[401419013,1768198243093,-500.84213941,0.00017073,2]
[401419014,1768198243103,-163.4155148,0.00017073,2]
[401419015,1768198243114,-500.0,0.00017073,2]
[401419016,1768198243125,-500.0,0.00017073,2]
[401419017,1768198243136,-500.0,0.00017073,2]
[401419018,1768198243147,-500.0,0.00017073,2]
[401419019,1768198243157,-150.0,0.000171,2]
[401419020,1768198243168,-268.4,0.00017135,2]
[401419021,1768198243178,-150.0,0.00017136,2]
[401419022,1768198243189,-150.0,0.00017169,2]
[401419023,1768198243200,-200.0,0.00017174,2]
[401419024,1768198243211,-500.0,0.00017178,2]
[401419025,1768198243222,-150.0,0.00017182,2]
[401419026,1768198243232,-150.0,0.00017182,2]
[401419027,1768198243243,-1080.31449983,0.00017188,2]
[401419028,1768198243264,-150.0,0.000172,2]
[401419029,1768198243275,-1000.0,0.000172,2]
[401419030,1768198243285,-150.0,0.00017208,2]
[401419031,1768198243295,-195.4,0.0001722,2]
[401419032,1768198243306,-268.4,0.00017231,2]
[401419033,1768198243316,-150.0,0.0001725,2]
[401419034,1768198243327,-2987.79350316,0.00017252,2]
[401419035,1768198243338,-546.21461534,0.00017275,2]
[401419036,1768198243349,-150.0,0.0001728,2]
[401419037,1768198243359,-469.78735424,0.00017298,2]
[401419038,1768198243370,-150.0,0.00017308,2]
[401419039,1768198243381,-268.4,0.00017327,2]
[401419040,1768198243391,-151.0,0.00017338,2]
[401419041,1768198243402,-624.47685867,0.00017338,2]
[401419042,1768198243412,-1377.0,0.00017339,2]
[401419043,1768198243423,-310.81,0.00017341,2]
[401419044,1768198243434,-150.0,0.00017345,2]
[401419045,1768198243444,-150.0,0.00017345,2]
[401419046,1768198243455,-211.9281146,0.00017347,2]
[401419047,1768198243466,-150.0,0.00017352,2]
[401419048,1768198243480,-158.73335703,0.00017362,2]
[401419049,1768198243491,-7983.6906341,0.00017392,2]
[401419050,1768198243502,-150.0,0.000174,2]
[401419051,1768198243514,-150.0,0.000174,2]
[401419052,1768198243525,-3413.21618772,0.00017414,2]
[401419053,1768198243536,-268.4,0.00017423,2]
[401419054,1768198243549,-150.0,0.00017424,2]
[401419055,1768198243560,-150.0,0.00017446,2]
[401419056,1768198243571,-2987.79350316,0.00017468,2]
[401419057,1768198243582,-823.0,0.0001747,2]
[401419058,1768198243593,-823.0,0.0001747,2]
[401419059,1768198243604,-1377.0,0.00017491,2]
[401419060,1768198243615,-150.0,0.00017496,2]
[401419061,1768198243626,-2000.0,0.000175,2]
[401419062,1768198243636,-1330.0,0.00017506,2]
[401419063,1768198243647,-1267.0,0.00017506,2]
[401419064,1768198243658,-505.0,0.00017506,2]
[401419065,1768198243669,-914.0,0.00017506,2]
[401419066,1768198243680,-1201.0,0.00017506,2]
[401419067,1768198243691,-2437.0,0.00017506,2]
[401419068,1768198243702,-6556.0,0.00017506,2]
[401419069,1768198243713,-4821.0,0.00017506,2]
[401419070,1768198243724,-150.0,0.00017509,2]
[401419071,1768198243735,-150.0,0.00017509,2]
[401419072,1768198243745,-250.0,0.00017516,2]
[401419073,1768198243757,-268.4,0.0001752,2]
[401419074,1768198243768,-1997.0,0.0001753,2]
[401419075,1768198243778,-1377.0,0.00017536,2]
[401419076,1768198243790,-150.0,0.0001755,2]
[401419077,1768198243800,-150.0,0.00017568,2]
[401419078,1768198243811,-150.0,0.00017585,2]
[401419079,1768198243822,-1000.0,0.000176,2]
[401419080,1768198243833,-150.0,0.000176,2]
[401419081,1768198243844,-268.4,0.00017616,2]